Cogmind - Beta 11 X7 @@@ ROGUE MODE // 2021.08.24 @ 04:48:28 // AFD2020/Player2 Player: PhenomPhear Result: Smashed by cave-in Performance ------------- Evolutions (0) 0 Regions Visited (2) 400 Robots Destroyed (5) 25 Value Destroyed (163) 163 Prototype IDs (0) 0 Alien Tech Used (0) 0 Bonus (-103) -103 TOTAL SCORE: 485 Bonus ------- Follower Combat Kills 35 Friendly Fire -138 Cogmind --------- Core Integrity 0/250 Matter 81/300 Energy 98/100 System Corruption 0% Temperature Cool (0) Movement Rolling (100) Location -10/Mines Parts ------- > --- POWER (1) -------- (None) > --- PROPULSION (2) --- Compact Wheel Compact Wheel > --- UTILITY (2) ------ Small Storage Unit Salvage Targeting Computer > --- WEAPON (2) ------- Improved Light Cannon Mini Grenade Launcher > --- INVENTORY (8) ---- Aluminum Leg Aluminum Leg Aluminum Leg Salvage Targeting Computer Small Laser Assault Rifle Improved Light Cannon Mini Grenade Launcher Peak State ------------ > --- POWER ------------ Ion Engine > --- PROPULSION ------- Compact Wheel Compact Wheel > --- UTILITY ---------- Small Storage Unit Salvage Targeting Computer > --- WEAPON ----------- Improved Light Cannon Improved Light Cannon > --- INVENTORY -------- Aluminum Leg Aluminum Leg Aluminum Leg Salvage Targeting Computer Small Laser Assault Rifle Mini Grenade Launcher Mini Grenade Launcher [Rating: 11] Favorites ----------- Power Ion Engine Engine Ion Engine Propulsion Compact Wheel Leg Aluminum Leg Wheel Compact Wheel Utility Small Storage Unit Storage Small Storage Unit Processor Salvage Targeting Computer Weapon Improved Light Cannon Energy Gun Small Laser Ballistic Gun Assault Rifle Ballistic Cannon Improved Light Cannon Launcher Mini Grenade Launcher Build | -11 -10 -10 ------- Run | Scr Mat Min Slots Evolved . | . . . Power . | . . . Propulsion . | . . . Utility . | . . . Weapon . | . . . Parts Attached 12 | 8 3 1 Power 1 | 1 . . Engine 1 | 1 . . Core . | . . . Reactor . | . . . Propulsion 4 | 4 . . Treads . | . . . Leg 2 | 2 . . Wheel 2 | 2 . . Hover . | . . . Flight . | . . . Utility 2 | 1 1 . Device . | . . . Storage 1 | 1 . . Processor 1 | . 1 . Hackware . | . . . Protection . | . . . Artifact . | . . . Weapon 5 | 2 2 1 Energy Gun 1 | 1 . . Energy Cannon . | . . . Ballistic Gun 1 | 1 . . Ballistic Cannon 2 | . 2 . Launcher 1 | . . 1 Special Weapon . | . . . Impact Weapon . | . . . Slashing Weapon . | . . . Piercing Weapon . | . . . Special Melee Weapon . | . . . Unidentified Prototypes . | . . . Parts Lost 1 | . . 1 Power 1 | . . 1 Propulsion . | . . . Utility . | . . . Weapon . | . . . Highest Loss Streak 1 | . . 1 Average Slot Usage (%) 89 | . 88 91 Engine 10 | . 14 6 Wheel 28 | . 28 28 Storage 14 | . 14 14 Processor 7 | . 3 14 Energy Gun 6 | . 10 . Ballistic Gun 6 | . 10 . Ballistic Cannon 11 | . 7 19 Launcher 3 | . . 9 Naked Turns . | . . . Heaviest Build 18 | 13 18 18 Greatest Support 32 | 32 32 32 Greatest Overweight (x) . | . . . Average Overweight (x) . | . . . Largest Inventory Capacity 8 | 8 8 8 Average Capacity 7 | 7 8 8 Most Carried 8 | 2 8 8 Average Carried 4 | . 3 8 Final Capacity 8 | 8 8 8 Final Carried 8 | 2 8 8 Class Distribution -------------------- 100% | Mutant Dominant Class ---------------- Mutant | -10/Materials Mutant | -10/Mines Resources | -11 -10 -10 ----------- Run | Scr Mat Min Matter Collected 240 | 90 105 45 Remotely . | . . . Salvage Created 169 | . 95 74 Parts 10 | . 5 5 Haulers Intercepted . | . . . Recyclers Shooed . | . . . Parts Field Recycled . | . . . Retrieved Matter . | . . . Parts Self-Destructed . | . . . Prevented . | . . . Kills | -11 -10 -10 ------- Run | Scr Mat Min Combat Hostiles Destroyed 12 | . 2 10 Guns 2 | . 2 . Cannons 1 | . . 1 AOE 9 | . . 9 Classes Destroyed 3 | . 1 2 Worker 1 | . . 1 Grunt 4 | . 2 2 Assembled 8 | . . 8 Best Kill Streak 8 | . 2 8 Combat Bots Only 8 | . 2 8 Max Kills in Single Turn 3 | . 1 3 Gunslinging . | . . . Exploded 3 | . . 3 Melee . | . . . Uniques/NPCs Destroyed . | . . . Combat | -11 -10 -10 -------- Run | Scr Mat Min Damage Taken 504 | . 137 367 Core 163 | . 37 126 Absorbed by Shields . | . . . Core Remaining (%) 100 | 100 . . Volleys Fired 21 | . 10 11 Largest 2 | . 2 2 Hottest 78 | . 78 78 Shots Fired 34 | . 20 14 Gun 16 | . 16 . Cannon 10 | . 4 6 Launcher 8 | . . 8 Special . | . . . Kinetic 18 | . 12 6 Thermal 8 | . 8 . Explosive 8 | . . 8 Electromagnetic . | . . . Robot Hit Streak 4 | . 3 4 Robot Miss Streak 2 | . 2 2 Penetration Max . | . . . Secondary Targets . | . . . Shots Hit Robots 17 | . 12 5 Core Hits 23 | . 7 16 Critical Kills . | . . . Critical Parts Destroyed . | . . . Critical Strikes . | . . . Melee Attacks . | . . . Impact . | . . . Slashing . | . . . Piercing . | . . . Sneak Attacks . | . . . Combat Hostiles . | . . . Follow-up Attacks . | . . . Damage Inflicted 1048 | . 205 843 Guns 115 | . 115 . Cannons 181 | . 90 91 Explosions 752 | . . 752 Melee . | . . . Ramming . | . . . Kinetic 227 | . 136 91 Thermal 69 | . 69 . Explosive 752 | . . 752 Electromagnetic . | . . . Impact . | . . . Slashing . | . . . Piercing . | . . . Highest Corruption . | . . . Average Corruption . | . . . Corruption Purged . | . . . Overload Shots . | . . . Overflow Damage 64 | . . 64 Projectiles . | . . . Explosions 64 | . . 64 Melee . | . . . Knockbacks . | . . . Impact . | . . . Kinetic . | . . . Secondary . | . . . Self-Inflicted Damage 68 | . . 68 Shots 2 | . . 2 Rammed . | . . . Targets Rammed . | . . . Kicked . | . . . Crushed . | . . . Highest Temperature 81 | . 45 81 Average Temperature 28 | . 22 38 Received Heat Transfer 180 | . 75 105 Siege Activations . | . . . Robots Corrupted . | . . . Combat Hostiles . | . . . Parts Fried . | . . . Impact Corruptions . | . . . Robots Melted . | . . . Combat Hostiles . | . . . Parts Melted . | . . . Heat Transferred 150 | . 150 . Parts Sabotaged . | . . . Parts Stolen . | . . . Parts Stripped . | . . . Power Chain Reactions . | . . . Missiles Intercepted . | . . . Alert | -11 -10 -10 ------- Run | Scr Mat Min Peak Influence 158 | . 85 158 Initial 33 | . . 33 Average 66 | . 52 114 Maximum Alert Level . | . . . Low Security (%) 100 | 100 100 100 Level 1 . | . . . Level 2 . | . . . Level 3 . | . . . Level 4 . | . . . Level 5 . | . . . High Security . | . . . Max Security . | . . . Squads Dispatched . | . . . Investigation . | . . . Extermination . | . . . Reinforcement . | . . . Assault . | . . . Garrison . | . . . Intercept . | . . . Construction Impeded . | . . . Haulers Reinforced . | . . . Active Scanning Responses . | . . . Cargo Convoy Interrupts . | . . . Stealth | -11 -10 -10 --------- Run | Scr Mat Min Distress Signals . | . . . Communications Jammed . | . . . Distress Signals . | . . . Times Spotted 17 | . 3 14 Peak Tracking Total 9 | . 2 9 Tactical Retreats . | . . . Traps | -11 -10 -10 ------- Run | Scr Mat Min Traps Triggered . | . . . Indirectly . | . . . Trap Hack Attempts . | . . . Triggered . | . . . Disarmed . | . . . Reprogrammed . | . . . Reused . | . . . Traps Extracted . | . . . Installed . | . . . Triggered . | . . . Machines | -11 -10 -10 ---------- Run | Scr Mat Min Machines Disabled . | . . . Max in Single Turn . | . . . Machines Sabotaged . | . . . Garrisons Compromised . | . . . Overloaded Fab Kills . | . . . Fab Network Shutdowns . | . . . Hacking | -11 -10 -10 --------- Run | Scr Mat Min Machines Accessed . | . . . Terminals . | . . . Fabricators . | . . . Repair Stations . | . . . Recycling Units . | . . . Scanalyzers . | . . . Garrison Access . | . . . Total Hacks . | . . . Successful . | . . . Failed . | . . . Catastrophic . | . . . Database Lockouts . | . . . Manual . | . . . Terminals . | . . . Fabricators . | . . . Repair Stations . | . . . Recycling Units . | . . . Scanalyzers . | . . . Garrison Access . | . . . Terminal Hacks . | . . . Fabricator Hacks . | . . . Repair Station Hacks . | . . . Recycling Unit Hacks . | . . . Scanalyzer . | . . . Garrison Access Hacks . | . . . Unauthorized Hacks . | . . . Terminals . | . . . Fabricators . | . . . Repair Stations . | . . . Recycling Units . | . . . Scanalyzers . | . . . Garrison Access . | . . . Data Cores Recovered . | . . . Used . | . . . Hacking Detections . | . . . Full Trace Events . | . . . Feedback Events . | . . . Feedback Blocked . | . . . Robot Schematics Acquired . | . . . Robots Built . | . . . Matter . | . . . Time . | . . . Total Robot Build Rating . | . . . Part Schematics Acquired . | . . . Parts Built . | . . . Matter . | . . . Time . | . . . Total Part Build Rating . | . . . Parts Repaired . | . . . Time . | . . . Parts Recycled . | . . . Recycled Matter . | . . . Retrieved Matter . | . . . Retrieved Components . | . . . Parts Scanalyzed . | . . . Part Schematics Acquired . | . . . Parts Damaged . | . . . Bothacking | -11 -10 -10 ------------ Run | Scr Mat Min Used RIF Installer . | . . . Robots Hacked . | . . . Non-combat . | . . . Combat . | . . . Robot Hacks Applied . | . . . Relay Couplers Released . | . . . Robots Rewired . | . . . Allies Hacked . | . . . Hacks Repelled . | . . . Allies | -11 -10 -10 -------- Run | Scr Mat Min Total Allies 1 | . 1 . Largest Group 1 | . 1 1 Highest-Rated Group 63 | . 62 63 Highest-Rated Ally 63 | . 62 63 Total Orders . | . . . Ally Attacks 7 | . . 7 Total Damage 211 | . 35 176 Kills 5 | . 1 4 Allies Corrupted . | . . . Allies Melted . | . . . Intel | -11 -10 -10 ------- Run | Scr Mat Min Robot Analysis Total . | . . . Derelict Logs Recovered . | . . . Drone Launches . | . . . Drone Recoveries . | . . . Exploration | -11 -10 -10 ------------- Run | Scr Mat Min Turns Passed 427 | 57 223 147 Spaces Moved 328 | 40 167 121 Core 6 | 6 . . Treads . | . . . Legs 33 | 33 . . Wheels 289 | 1 167 121 Hover . | . . . Flight . | . . . Fastest Speed 50 | 50 100 100 Average Speed 101 | 109 100 100 Slowest Speed 120 | 120 100 100 Overloaded Moves . | . . . Propulsion Burnouts . | . . . Robots Hopped . | . . . Cave-ins Triggered 1 | . . 1 Exploration Rate (%) 18 | 3 25 28 Regions Visited 2 Branch Regions 1 Pre-discovered Areas . | . . . Known Exits Taken . | . . . Unknown Exits Taken 2 | 1 1 . Scrap Searched . | . . . Spaces Dug 13 | . . 13 Terrain Destroyed 65 | . . 65 Melee . | . . . Projectile . | . . . AOE 65 | . . 65 Terrain Rammed . | . . . Walls Destroyed . | . . . Machines Disabled . | . . . Actions | -11 -10 -10 --------- Run | Scr Mat Min Total 382 | 49 201 132 Wait 16 | . 16 . Move 325 | 39 166 120 Hop . | . . . Pick Up 8 | 2 6 . Fast Attach 7 | 6 1 . Attach . | . . . Detach . | . . . Swap 5 | 2 2 1 Drop . | . . . Fire 21 | . 10 11 Melee . | . . . Ram . | . . . Kick . | . . . Crush . | . . . Escape Stasis . | . . . Rewire . | . . . Trap . | . . . Miscellaneous . | . . . Route ------- -11/Scrapyard -10/Materials -10/Mines (discovered 1 exit: [*Mat]) History --------- Turn | Location | Event 3 | -11/Scrapyard | Discovered new exit (range 15) 58 | -11/Scrapyard | Entered Materials 210 | -10/Materials | Discovered new exit (range 12) 252 | -10/Materials | Core integrity fell below 50% 281 | -10/Materials | Entered Mines 281 | -10/Mines | Accompanied by 1 ally 308 | -10/Mines | Met a Derelict bent on vengeance 314 | -10/Mines | Build established: Mutant 329 | -10/Mines | Assembled infested the area 354 | -10/Mines | Core integrity fell below 20% 370 | -10/Mines | Destroyed 8 combat bots 401 | -10/Mines | Discovered new exit (range 14) 428 | -10/Mines | Crushed by falling debris 428 | -10/Mines | Smashed by cave-in Last Messages --------------- 00349_ as-82802 destroyed. 00372_ The unstable cave ceiling collapses. 00373_ Player 2 acquires Lgt. Ion Engine. 00378_ The unstable cave ceiling collapses. 00398_ U-05 Engineer lays Concrete. 00401_ EXIT=FOUND 00402_ U-05 Engineer builds a Wall. 00405_ G-47 Trooper destroyed. 00405_ K-01 Serf destroyed. 00410_ U-05 Engineer lays Concrete. 00412_ The unstable cave ceiling collapses. 00412_ Sml. Storage Unit crushed. 00412_ U-05 Engineer lays Concrete. 00414_ U-05 Engineer builds a Wall. 00421_ Acquired 1 matter. 00424_ U-05 Engineer lays Concrete. 00427_ U-05 Engineer builds a Wall. 00427_ K-01 Serf collects debris. 00428_ The unstable cave ceiling collapses. 00428_ Crushed by falling debris. Map ----- +----------------------------------------------------+ | ???????????????????????# #???????? | | ???????????????????????## ##??????? | | ???????????????????????# ##?????? | | ???????????????????????# # ##????? | | ??????????????????????## #????? | | ??????????????????????# ### ##????? | | ??????????????????????## # #?????? | | ??????????????????????### #?????? | | ?????????????????????## # #?????? | | ?????????????????????# % ###?????? | | ????????????????????## ! " #???????? | | ???????????????????## %== ##???????? | | ???????????????????# ##????????? | | ???????????????????# # ###?????????? | | ???????????????????## ## #???????????? | | ????????????????????## ## ???????????? | | ?????????????????????# #####??????????? | | ???????????????????### #??????????????? | | ??????????########## # #????###?##????? | | ???????? ! #???; ;# ##???? | | ???????????????### ##??? ##??? | | ????????????????## # ### #??? | | ????????????????# # # # !%= % #??? | | ????????????###### # %%% * #??? | | ???????????## # ## # # %= #??? | | ???????????# ## @#= #??? | | ??????????## ## # # #??? | | ???????#### ##### % ##??? | | ?# # #???? < #???? | | ?# #### #### #????? #???? | | ???????????## ## #???########???? | | ????????????## #### #?????????????? | | ?????????????## ##????##?????????????? | | ??????????????#####????????????????????? | | ???????????????????????????????????????? | | ???????????????????????????????????????? | | ???????????????????????????????????????? | | ???????????????????????????????????????? | | ???????????????????????????????????????? | | ???????????????????????????????????????? | | ???????????????????????????????????????? | | ???????????????????????????????????????? | | ???????????????????????????????????????? | | ???????????????????????????????????????? | | | | | | | | | | | | | +----------------------------------------------------+ Best States ------------- Heat Dissipation 25 Energy Generation 10 Energy Capacity 250 Matter Stores 181 Matter Capacity 300 Sight Range 16 Terrain Scan Density 10 Evasion (%) 50 Salvage Targeting 1 Item Schematics ----------------- None Robot Schematics ------------------ None Fabricated ------------ Nothing Alien Tech Used ----------------- None Achievements -------------- None Challenges ------------ None Player 2 | -11 -10 -10 ---------- Run | Scr Mat Min Slots Evolved . | . . . Power . | . . . Propulsion . | . . . Utility . | . . . Weapon . | . . . Parts Attached 7 | . 6 1 Parts Lost . | . . . Damage Taken 100 | . 100 . Core 89 | . 89 . Player 2/Cogmind (%) 35 | . 70 . Absorbed by Shields . | . . . Damage Inflicted 211 | . 35 176 Player 2/Cogmind (%) 16 | . 14 17 Combat Hostiles Destroyed 4 | . . 4 Player 2/Cogmind (%) 25 | . . 28 Game ------ Seed NetworkBattlePit Manual? 0 Play Time 00:04:57 Cumulative 1086.1 hours Start 2021.08.24 @ 04:44:00 End 2021.08.24 @ 04:48:28 Sessions 1 Manual Loads 0 Difficulty Rogue Special Mode AFD2020/Player2 Game No. 681 Rogue 681 Adventurer 0 Explorer 0 Win Type - Total 18 Types 10/1/4/3/0/0/0/0/0 Lore% 88 Gallery% 90 Achievement% 81 Wizard Run 0 Options --------- ASCII 0 Keyboard 0 Movement Mouse Keybinds 0 Fullscreen 1 Font 24/Smallcaps Map View 76x50 Tactical HUD 1 Map Filters NONE Filters NONE Steam 1 RUN: 2460dec0-5c94-420e-b4d1-2b0ee770575d